fUST/lending_fUST_20240119
["ID","MTS","AMOUNT","RATE_DAILY","PERIOD"]
[312104345,1705627841599,-738.0960739,0.00034373,3]
[312104382,1705627846141,-504.69287072,0.00034099,3]
[312104383,1705627846151,-500.0,0.00034099,3]
[312104384,1705627846160,-586.63,0.00034101,3]
[312104385,1705627846169,-9.64949913,0.00034365,3]
[312104386,1705627846215,-11.805385,0.00034365,3]
[312104388,1705627866640,7531.8375342,0.0003131,14]
[312104394,1705627951837,830.0,0.0002,2]
[312104399,1705627992832,-294.70821043,0.00019999,2]
[312104400,1705627992852,-8314.29178957,0.0002,2]
[312104401,1705628069188,-4516.6226567,0.00019997,2]
[312104402,1705628069210,-2001.52604925,0.00019998,2]
[312104403,1705628069232,-1602.24051039,0.00019999,2]
[312104404,1705628069252,-855.70821043,0.0002,2]
[312104405,1705628070478,7749.90257323,0.000163,2]
[312104406,1705628070520,2250.09742677,0.000163,2]
[312104407,1705628141389,-555.04009963,0.00019995,2]
[312104408,1705628141409,-2440.95990037,0.00019995,2]
[312104409,1705628238727,10000.0,0.000163,2]
[312104411,1705628266491,10000.0,0.000163,2]
[312104419,1705628600217,10000.0,0.000251,10]
[312104434,1705628946094,-1602.24051039,0.00028678,2]
[312104435,1705628946114,-2813.43161407,0.00028679,2]
[312104436,1705628946133,-360.2940124,0.00029568,2]
[312104437,1705628946152,-2169.06243742,0.00029741,2]
[312104438,1705628946171,-164.993568,0.00030137,2]
[312104439,1705628946189,-602.87282005,0.00030263,2]
[312104441,1705628952178,-152.92806292,0.00029568,2]
[312104442,1705628965101,-85.27053378,0.00029568,2]
[312104443,1705628965129,-557.53437925,0.00030263,2]
[312104444,1705628965156,-1743.54,0.000313,3]
[312104445,1705628965180,-1743.54,0.000313,3]
[312104446,1705628965207,-2173.89,0.000313,3]
[312104447,1705628965235,-1811.58,0.000313,3]
[312104448,1705628965261,-818.23710979,0.00031308,4]
[312104449,1705628965284,-295.81170709,0.00031308,4]
[312104450,1705628965308,-646.0547508,0.00031308,4]
[312104451,1705628965335,-8243.78409377,0.00031308,4]
[312104452,1705628965361,-1594.31533329,0.00031308,4]
[312104453,1705628973104,-3234.37421492,0.00031308,4]
[312104454,1705628973128,-557.0187265,0.00031308,4]
[312104455,1705628973151,-3007.52072352,0.00031308,4]
[312104456,1705628973175,-1067.39708025,0.00031308,4]
[312104457,1705628973198,-548.12367354,0.00031308,4]
[312104458,1705628973222,-4198.44511278,0.00031309,4]
[312104459,1705628973245,-64017.86262655,0.0003131,14]
[312104460,1705628973267,-3171.6065412,0.0003131,4]
[312104461,1705628973291,-401.679406,0.000314,2]
[312104462,1705628973314,-154.3668201,0.000314,2]
[312104463,1705628973337,-702.90545875,0.00032003,2]
[312104464,1705628973361,-155.0,0.00032424,2]
[312104465,1705628973385,-1275.6437531,0.00032458,2]
[312104466,1705628973528,-534.45083873,0.0003247,2]
[312104467,1705628973551,-156.49393018,0.00032725,7]
[312104468,1705628973572,-500.0,0.00032876,2]
[312104469,1705628973592,-500.81551736,0.00032876,2]
[312104470,1705628973613,-500.0,0.00032876,2]
[312104471,1705628973633,-500.0,0.00032876,2]
[312104472,1705628973652,-500.0,0.00032876,2]
[312104473,1705628973672,-396.41630454,0.00032876,2]
[312104474,1705628973692,-500.0,0.00032876,2]
[312104475,1705628973711,-510.23718748,0.00032876,2]
[312104476,1705628973731,-504.62502569,0.00032876,2]
[312104477,1705628973751,-500.0,0.00032876,2]
[312104478,1705628973770,-506.1218786,0.00032876,2]
[312104479,1705628973790,-500.0,0.00032876,2]
[312104480,1705628973809,-510.22380767,0.00032876,2]
[312104481,1705628973830,-504.64136939,0.00032876,2]
[312104482,1705628973849,-500.0,0.00032876,2]
[312104483,1705628973869,-500.0,0.00032876,2]
[312104484,1705628973889,-500.0,0.00032876,2]
[312104485,1705628973908,-1024.6,0.00032876,2]
[312104486,1705628973928,-500.71,0.00032876,2]
[312104487,1705628973947,-1899.53,0.00032876,2]
[312104488,1705628973967,-502.00456235,0.00032876,2]
[312104489,1705628973987,-500.0,0.00032876,2]
[312104490,1705628974006,-500.0,0.00032876,2]
[312104491,1705628974026,-500.0,0.00032876,2]
[312104492,1705628974045,-506.72043248,0.00032876,2]
[312104493,1705628974066,-500.0,0.00032876,2]
[312104494,1705628974085,-500.0,0.00032876,2]
[312104495,1705628974105,-502.88424517,0.00032876,2]
[312104496,1705628974125,-500.0,0.00032876,2]
[312104497,1705628974147,-3621.25364353,0.00032876,2]
[312104499,1705628990400,624.73441005,0.00029833,2]
[312104543,1705629032116,-778.11,0.00032876,2]
[312104545,1705629032125,-500.0,0.00032876,2]
[312104547,1705629032134,-336.49715608,0.00032876,2]
[312104574,1705629038249,-2169.25,0.00032866,3]
[312104575,1705629038259,-165.93033742,0.00032876,2]
[312104576,1705629038269,-2959.78,0.00032876,2]
[312104577,1705629038278,-500.0,0.00032876,2]
[312104578,1705629038287,-13688.13,0.00032876,2]
[312104579,1705629038298,-1783.4,0.00032876,2]
[312104580,1705629038307,-1719.99,0.00032876,2]
[312104581,1705629038318,-500.0,0.00032876,2]
[312104582,1705629038327,-500.0,0.00032876,2]
[312104583,1705629038336,-502.69643034,0.00032876,2]
[312104584,1705629038346,-500.0,0.00032876,2]
[312104585,1705629038356,-500.0,0.00032876,2]
[312104586,1705629038365,-1541.91,0.00032876,2]
[312104587,1705629038374,-506.64965042,0.00032876,2]
[312104588,1705629038384,-500.0,0.00032876,2]
[312104589,1705629038393,-9191.98,0.00032876,2]
[312104590,1705629038403,-1400.15,0.00032876,2]
[312104591,1705629038417,-518.27555561,0.00032876,2]
[312104592,1705629038427,-507.79570843,0.00032876,2]
[312104593,1705629038437,-500.0,0.00032876,2]
[312104594,1705629038446,-587.09,0.00032876,2]
[312104595,1705629038456,-2590.68,0.00032876,2]
[312104596,1705629038465,-500.0,0.00032876,2]
[312104597,1705629038474,-811.91,0.00032876,2]
[312104598,1705629038484,-500.0,0.00032876,2]
[312104599,1705629038494,-1256.58,0.00032876,2]
[312104600,1705629038504,-500.0,0.00032876,2]
[312104601,1705629038513,-501.5077667,0.00032876,2]
[312104602,1705629038523,-501.73513035,0.00032876,2]
[312104603,1705629038533,-636.96,0.00032876,2]
[312104604,1705629038542,-500.0,0.00032876,2]
[312104605,1705629038552,-502.80187139,0.00032876,2]
[312104606,1705629038560,-3509.57,0.00032876,2]
[312104607,1705629038570,-500.0,0.00032876,2]
[312104608,1705629038579,-500.0,0.00032876,2]
[312104609,1705629038589,-545.48,0.00032876,2]
[312104610,1705629038598,-501.97986543,0.00032876,2]
[312104611,1705629038607,-500.0,0.00032876,2]
[312104612,1705629038616,-502.11,0.00032876,2]
[312104613,1705629038625,-3523.95,0.00032876,2]
[312104614,1705629038634,-667.64,0.00032876,2]
[312104615,1705629038643,-500.0,0.00032876,2]
[312104616,1705629038653,-500.0,0.00032876,2]
[312104617,1705629038663,-500.0,0.00032876,2]
[312104618,1705629038672,-500.0,0.00032876,2]
[312104619,1705629038682,-500.0,0.00032876,2]
[312104620,1705629038693,-1214.37,0.00032876,2]
[312104621,1705629038702,-500.0,0.00032876,2]
[312104622,1705629038711,-500.0,0.00032876,2]
[312104623,1705629038720,-500.0,0.00032876,2]
[312104624,1705629038730,-500.0,0.00032876,2]
[312104625,1705629038740,-500.0,0.00032876,2]
[312104626,1705629038749,-504.07827703,0.00032876,2]
[312104627,1705629038758,-500.0,0.00032876,2]
[312104628,1705629038767,-195.7337572,0.00032876,2]
[312104629,1705629038777,-500.0,0.00032876,2]
[312104630,1705629038786,-500.0,0.00032876,2]
[312104631,1705629038795,-500.0,0.00032876,2]
[312104632,1705629038804,-500.84,0.00032876,2]
[312104633,1705629038814,-500.0,0.00032876,2]
[312104634,1705629038823,-504.20658948,0.00032876,2]
[312104635,1705629038832,-500.0,0.00032876,2]
[312104636,1705629038841,-1026.89,0.00032876,2]
[312104637,1705629038850,-500.0,0.00032876,2]
[312104638,1705629038858,-500.0,0.00032876,2]
[312104639,1705629038868,-500.0,0.00032876,2]
[312104640,1705629038877,-496.32547003,0.00032876,2]
[312104641,1705629038886,-677.54,0.00032876,2]
[312104642,1705629038895,-408.62377365,0.0003291,2]
[312104643,1705629038904,-2603.1,0.0003299,3]
[312104644,1705629038914,-680.02795571,0.00033,5]
[312104645,1705629038923,-168.0,0.00033,2]
[312104646,1705629038931,-160.06161826,0.0003305,2]
[312104647,1705629038941,-6762.26543772,0.00033139,4]
[312104648,1705629038950,-504.90585891,0.0003315,3]
[312104649,1705629038959,-500.0,0.0003315,3]
[312104650,1705629038968,-500.0,0.0003315,3]
[312104651,1705629038977,-500.0,0.0003315,3]
[312104652,1705629038986,-500.0,0.0003315,3]
[312104653,1705629038995,-509.74467699,0.0003315,3]
[312104654,1705629039004,-500.0,0.0003315,3]
[312104655,1705629039013,-1899.53,0.0003315,3]
[312104656,1705629039022,-568.40930442,0.0003315,3]
[312104657,1705629039031,-355.69745984,0.0003315,3]
[312104658,1705629039040,-500.0,0.0003315,3]
[312104659,1705629039049,-505.71343342,0.0003315,3]
[312104660,1705629039058,-501.52733397,0.0003315,3]
[312104661,1705629039067,-369.67469477,0.0003315,3]
[312104662,1705629039077,-778.11,0.0003315,3]
[312104663,1705629039085,-500.0,0.0003315,3]
[312104664,1705629039095,-2959.78,0.0003315,3]
[312104665,1705629039103,-500.0,0.0003315,3]
[312104666,1705629039113,-13688.13,0.0003315,3]
[312104667,1705629039122,-1783.4,0.0003315,3]
[312104668,1705629039131,-1719.99,0.0003315,3]
[312104669,1705629039140,-500.0,0.0003315,3]
[312104670,1705629039149,-509.14299081,0.0003315,3]
[312104671,1705629039159,-516.49737207,0.0003315,3]
[312104672,1705629039168,-500.0,0.0003315,3]
[312104673,1705629039178,-1541.91,0.0003315,3]
[312104674,1705629039187,-612.1162508,0.0003315,3]
[312104675,1705629039196,-9191.98,0.0003315,3]
[312104676,1705629039206,-1400.15,0.0003315,3]
[312104677,1705629039215,-500.0,0.0003315,3]
[312104678,1705629039224,-587.09,0.0003315,3]
[312104679,1705629039233,-2590.68,0.0003315,3]
[312104680,1705629039242,-506.76501181,0.0003315,3]
[312104681,1705629039251,-811.91,0.0003315,3]
[312104682,1705629039260,-500.0,0.0003315,3]
[312104683,1705629039269,-500.0,0.0003315,3]
[312104684,1705629039278,-1256.58,0.0003315,3]
[312104685,1705629039287,-636.96,0.0003315,3]
[312104686,1705629039296,-500.0,0.0003315,3]
[312104687,1705629039306,-3509.57,0.0003315,3]
[312104688,1705629039315,-502.30125866,0.0003315,3]
[312104689,1705629039419,-506.9785105,0.0003315,3]
[312104690,1705629039429,-545.48,0.0003315,3]
[312104691,1705629039438,-502.11,0.0003315,3]
[312104692,1705629039447,-506.90799434,0.0003315,3]
[312104693,1705629039457,-3523.95,0.0003315,3]
[312104694,1705629039467,-667.64,0.0003315,3]
[312104695,1705629039476,-503.84127072,0.0003315,3]
[312104696,1705629039486,-501.15009695,0.0003315,3]
[312104697,1705629039497,-504.0014974,0.0003315,3]
[312104698,1705629039508,-500.0,0.0003315,3]
[312104699,1705629039517,-505.8093406,0.0003315,3]
[312104700,1705629039526,-1214.37,0.0003315,3]
[312104701,1705629039535,-500.0,0.0003315,3]
[312104702,1705629039545,-502.6959281,0.0003315,3]
[312104703,1705629039554,-500.0,0.0003315,3]
[312104704,1705629039563,-506.55706493,0.0003315,3]
[312104705,1705629039572,-518.63555237,0.0003315,3]
[312104706,1705629039581,-500.0,0.0003315,3]
[312104707,1705629039591,-500.0,0.0003315,3]
[312104708,1705629039600,-506.25030617,0.0003315,3]
[312104709,1705629039609,-500.41281024,0.0003315,3]
[312104710,1705629039618,-500.84,0.0003315,3]
[312104711,1705629039627,-507.82039817,0.0003315,2]
[312104712,1705629039638,-1026.89,0.0003315,3]
[312104713,1705629039647,-503.57909718,0.0003315,3]
[312104714,1705629039657,-217.57006321,0.0003315,3]
[312104715,1705629039666,-677.54,0.0003315,3]
[312104716,1705629039675,-254.25868726,0.00033403,7]
[312104717,1705629039685,-500.0,0.00033424,3]
[312104718,1705629039694,-500.0,0.00033424,3]
[312104719,1705629039703,-500.0,0.00033424,3]
[312104720,1705629039712,-500.0,0.00033424,3]
[312104721,1705629039721,-500.0,0.00033424,3]
[312104722,1705629039731,-1899.53,0.00033424,3]
[312104723,1705629039740,-500.0,0.00033424,3]
[312104724,1705629039749,-778.11,0.00033424,3]
[312104725,1705629039758,-500.0,0.00033424,3]
[312104726,1705629039767,-2959.78,0.00033424,3]
[312104727,1705629039776,-505.5506374,0.00033424,3]
[312104728,1705629039785,-13688.13,0.00033424,3]
[312104729,1705629039794,-1783.4,0.00033424,3]
[312104730,1705629039804,-500.0,0.00033424,3]
[312104731,1705629039813,-1719.99,0.00033424,3]
[312104732,1705629039822,-1541.91,0.00033424,3]
[312104733,1705629039831,-9191.98,0.00033424,3]
[312104734,1705629039841,-1400.15,0.00033424,3]
[312104735,1705629039849,-241.67709641,0.00033424,3]
[312104736,1705629039858,-587.09,0.00033424,3]
[312104737,1705629039867,-2590.68,0.00033424,3]
[312104738,1705629039876,-811.91,0.00033424,3]
[312104739,1705629039885,-500.0,0.00033424,3]
[312104740,1705629039894,-500.0,0.00033424,3]
[312104741,1705629039903,-1256.58,0.00033424,3]
[312104742,1705629039912,-636.96,0.00033424,3]
[312104743,1705629039921,-513.2176525,0.00033424,3]
[312104744,1705629039930,-3509.57,0.00033424,3]
[312104745,1705629039938,-545.48,0.00033424,3]
[312104746,1705629039948,-502.11,0.00033424,3]
[312104747,1705629039957,-3523.95,0.00033424,3]
[312104748,1705629039965,-667.64,0.00033424,3]
[312104749,1705629039974,-518.39292793,0.00033424,3]
[312104750,1705629039983,-1214.37,0.00033424,3]
[312104751,1705629039992,-504.37138156,0.00033424,3]
[312104752,1705629040001,-500.0,0.00033424,3]
[312104753,1705629040010,-506.64434181,0.00033424,3]
[312104754,1705629040020,-500.0,0.00033424,3]
[312104755,1705629040028,-500.84,0.00033424,3]
[312104756,1705629040038,-1026.89,0.00033424,3]
[312104757,1705629040047,-677.54,0.00033424,3]
[312104758,1705629040056,-233.93138743,0.00033685,4]
[312104759,1705629040065,-500.0,0.00033698,3]
[312104760,1705629040074,-500.0,0.00033698,3]
[312104761,1705629040084,-500.0,0.00033698,3]
[312104762,1705629040093,-500.0,0.00033698,3]
[312104763,1705629040102,-500.0,0.00033698,3]
[312104764,1705629040112,-1899.53,0.00033698,3]
[312104765,1705629040121,-500.0,0.00033698,3]
[312104766,1705629040131,-778.11,0.00033698,3]
[312104767,1705629040140,-500.0,0.00033698,3]
[312104768,1705629040149,-2959.78,0.00033698,3]
[312104769,1705629040158,-13688.13,0.00033698,3]
[312104770,1705629040167,-1783.4,0.00033698,3]
[312104772,1705629040178,-500.0,0.00033698,3]
[312104774,1705629040188,-1719.99,0.00033698,3]
[312104776,1705629040197,-1541.91,0.00033698,3]
[312104778,1705629040208,-9191.98,0.00033698,3]
[312104779,1705629040218,-1400.15,0.00033698,3]
[312104780,1705629040227,-587.09,0.00033698,3]
[312104781,1705629040237,-2590.68,0.00033698,3]
[312104782,1705629040246,-811.91,0.00033698,3]
[312104783,1705629040255,-500.0,0.00033698,3]
[312104785,1705629040265,-500.0,0.00033698,3]
[312104787,1705629040274,-1256.58,0.00033698,3]
[312104789,1705629040284,-636.96,0.00033698,3]
[312104791,1705629040293,-3509.57,0.00033698,3]
[312104793,1705629040302,-545.48,0.00033698,3]
[312104795,1705629040311,-502.11,0.00033698,3]
[312104796,1705629040320,-3523.95,0.00033698,3]
[312104797,1705629040330,-667.64,0.00033698,3]
[312104798,1705629040338,-1214.37,0.00033698,3]
[312104799,1705629040348,-500.0,0.00033698,3]
[312104800,1705629040357,-500.0,0.00033698,3]
[312104801,1705629040366,-500.84,0.00033698,3]
[312104802,1705629040376,-1026.89,0.00033698,3]
[312104803,1705629040385,-677.54,0.00033698,3]
[312104804,1705629040394,-155.0,0.00033794,2]
[312104805,1705629040403,-162.51601104,0.00033884,7]
[312104806,1705629040416,-793.0,0.00033942,30]
[312104807,1705629040425,-793.0,0.00033952,30]
[312104808,1705629040434,-793.0,0.00033962,30]
[312104809,1705629040443,-500.0,0.00033972,3]
[312104810,1705629040454,-287.96952533,0.00033972,3]
[312104811,1705629040463,-500.0,0.00033972,3]
[312104812,1705629040472,-500.0,0.00033972,3]
[312104813,1705629040481,-511.22320999,0.00033972,3]
[312104814,1705629040491,-1899.53,0.00033972,3]
[312104815,1705629040501,-557.41311961,0.00033972,3]
[312104816,1705629040510,-778.11,0.00033972,3]
[312104817,1705629040518,-500.0,0.00033972,3]
[312104818,1705629040528,-2959.78,0.00033972,3]
[312104819,1705629040538,-13688.13,0.00033972,3]
[312104820,1705629040547,-1783.4,0.00033972,3]
[312104821,1705629040556,-611.02220201,0.00033972,3]
[312104822,1705629040565,-1719.99,0.00033972,3]
[312104823,1705629040575,-1541.91,0.00033972,3]
[312104824,1705629040585,-9191.98,0.00033972,3]
[312104825,1705629040594,-1400.15,0.00033972,3]
[312104826,1705629040604,-587.09,0.00033972,3]
[312104827,1705629040614,-2590.68,0.00033972,3]
[312104828,1705629040623,-811.91,0.00033972,3]
[312104829,1705629040634,-500.0,0.00033972,3]
[312104830,1705629040644,-500.0,0.00033972,3]
[312104831,1705629040654,-1256.58,0.00033972,3]
[312104832,1705629040666,-636.96,0.00033972,3]
[312104833,1705629040676,-3509.57,0.00033972,3]
[312104834,1705629040686,-545.48,0.00033972,3]
[312104835,1705629040696,-502.11,0.00033972,3]
[312104836,1705629040706,-3523.95,0.00033972,3]
[312104837,1705629040717,-667.64,0.00033972,3]
[312104838,1705629040725,-1214.37,0.00033972,3]
[312104839,1705629040735,-500.0,0.00033972,3]
[312104840,1705629040744,-500.0,0.00033972,3]
[312104841,1705629040754,-500.84,0.00033972,3]
[312104842,1705629040764,-1026.89,0.00033972,3]
[312104843,1705629040774,-306.63663202,0.0003399,2]
[312104844,1705629040783,-498.19864621,0.00034099,3]
[312104845,1705629040792,-502.51998435,0.00034099,3]
[312104846,1705629040801,-502.4340676,0.00034099,3]
[312104847,1705629040810,-500.0,0.00034099,3]
[312104848,1705629040820,-500.0,0.00034099,3]
[312104849,1705629040829,-509.40766636,0.00034099,3]
[312104850,1705629040839,-524.18602468,0.00034099,3]
[312104851,1705629040848,-500.0,0.00034099,3]
[312104852,1705629040858,-502.82563989,0.00034099,3]
[312104853,1705629040867,-500.0,0.00034099,3]
[312104854,1705629040876,-502.00719133,0.00034099,3]
[312104855,1705629040885,-490.91791186,0.00034099,3]
[312104856,1705629040894,-150.0,0.00034099,3]
[312104857,1705629040903,-500.0,0.00034099,3]
[312104858,1705629040914,-503.81169349,0.00034099,3]
[312104859,1705629040923,-502.5667816,0.00034099,3]
[312104860,1705629040932,-502.08779407,0.00034099,3]
[312104861,1705629040941,-501.19114178,0.00034099,7]
[312104862,1705629040950,-502.6174218,0.00034099,3]
[312104863,1705629040959,-503.89430269,0.00034099,3]
[312104864,1705629040968,-500.0,0.00034099,3]
[312104865,1705629040977,-500.0,0.00034099,3]
[312104866,1705629040986,-500.0,0.00034099,3]
[312104867,1705629040995,-505.34721411,0.00034099,3]
[312104868,1705629041005,-503.65084217,0.00034099,3]
[312104869,1705629041015,-500.0,0.00034099,3]
[312104870,1705629041024,-902.23,0.00034099,3]
[312104871,1705629041034,-404.49007753,0.00034099,3]
[312104872,1705629041046,-500.13620846,0.00034099,3]
[312104873,1705629041056,-500.72707164,0.00034099,3]
[312104874,1705629041067,-507.47388427,0.00034099,3]
[312104875,1705629041077,-502.82978721,0.00034099,3]
[312104876,1705629041088,-500.0,0.00034099,3]
[312104877,1705629041098,-502.25678309,0.00034099,3]
[312104878,1705629041109,-500.0,0.00034099,3]
[312104879,1705629041118,-502.50200086,0.00034099,3]
[312104880,1705629041128,-500.0,0.00034099,3]
[312104881,1705629041138,-501.14968167,0.00034099,3]
[312104882,1705629041148,-507.59096993,0.00034099,3]
[312104883,1705629041158,-499.99997079,0.00034099,3]
[312104884,1705629041167,-510.93446959,0.00034099,3]
[312104885,1705629041176,-500.0,0.00034099,3]
[312104886,1705629041185,-503.11281892,0.00034099,3]
[312104887,1705629041194,-502.52294116,0.00034099,2]
[312104888,1705629041204,-500.0,0.00034099,3]
[312104889,1705629041213,-818.87,0.00034099,3]
[312104890,1705629041222,-503.42522656,0.00034099,3]
[312104891,1705629041231,-500.0,0.00034099,3]
[312104892,1705629041240,-500.0,0.00034099,3]
[312104893,1705629041249,-500.0,0.00034099,3]
[312104894,1705629041258,-500.0,0.00034099,3]
[312104895,1705629041267,-503.27987946,0.00034099,3]
[312104896,1705629041277,-500.0,0.00034099,3]
[312104897,1705629041286,-500.0,0.00034099,3]
[312104898,1705629041295,-506.63130123,0.00034099,3]
[312104899,1705629041304,-500.0,0.00034099,3]
[312104900,1705629041313,-500.0,0.00034099,5]
[312104901,1705629041322,-502.32464528,0.00034099,3]
[312104902,1705629041331,-504.19286789,0.00034099,3]
[312104903,1705629041340,-1527.64,0.00034099,3]
[312104904,1705629041349,-500.0,0.00034099,3]
[312104905,1705629041358,-330.86630192,0.00034099,3]
[312104906,1705629041368,-2842.99,0.00034099,3]
[312104907,1705629041453,-502.40674425,0.00034099,3]
[312104908,1705629041463,-538.83,0.00034099,3]
[312104909,1705629041475,-500.0,0.00034099,3]
[312104910,1705629041484,-502.35821217,0.00034099,3]
[312104911,1705629041495,-500.0,0.00034099,3]
[312104912,1705629041505,-500.0,0.00034099,3]
[312104913,1705629041515,-514.1,0.00034099,3]
[312104914,1705629041525,-500.0,0.00034099,3]
[312104915,1705629041534,-500.0,0.00034099,3]
[312104916,1705629041544,-690.77,0.00034099,3]
[312104917,1705629041554,-500.0,0.00034099,3]
[312104918,1705629041565,-500.0,0.00034099,3]
[312104919,1705629041575,-501.40007869,0.00034099,3]
[312104920,1705629041585,-500.0,0.00034099,3]
[312104921,1705629041594,-444.17934324,0.00034099,3]
[312104922,1705629041604,-500.0,0.00034099,3]
[312104923,1705629041614,-439.17598128,0.00034099,3]
[312104924,1705629041623,-500.0,0.00034099,3]
[312104925,1705629041633,-1613.0,0.00034099,3]
[312104926,1705629041642,-500.0,0.00034099,3]
[312104927,1705629041652,-1571.17,0.00034099,3]
[312104928,1705629041661,-595.1791592,0.00034099,3]
[312104929,1705629041670,-500.0,0.00034099,3]
[312104930,1705629041679,-500.0,0.00034099,3]
[312104931,1705629041688,-500.82465992,0.00034099,3]
[312104932,1705629041698,-500.0,0.00034099,14]
[312104933,1705629041707,-500.0,0.00034099,3]
[312104934,1705629041717,-282.63371016,0.00034099,3]
[312104935,1705629041726,-500.0,0.00034099,3]
[312104936,1705629041735,-500.0,0.00034099,3]
[312104937,1705629041745,-500.0,0.00034099,3]
[312104938,1705629041753,-500.0,0.00034099,3]
[312104939,1705629041762,-500.0,0.00034099,3]
[312104940,1705629041771,-500.0,0.00034099,3]
[312104941,1705629041781,-500.90504742,0.000341,3]
[312104942,1705629041791,-502.89946929,0.000341,3]
[312104943,1705629041800,-501.83331813,0.000341,3]
[312104944,1705629041809,-502.2632275,0.000341,3]
[312104945,1705629041819,-500.0,0.000341,3]
[312104946,1705629041830,-500.0,0.000341,3]
[312104947,1705629041839,-444.98348569,0.000341,2]
[312104948,1705629041849,-500.0,0.000341,3]
[312104949,1705629041858,-500.0,0.000341,3]
[312104950,1705629041869,-500.0,0.000341,3]
[312104951,1705629041879,-231.31571371,0.000341,3]
[312104952,1705629041888,-500.0,0.000341,3]
[312104953,1705629041898,-500.0,0.00034101,3]
[312104954,1705629041909,-500.0,0.00034101,3]
[312104955,1705629041918,-500.0,0.00034101,3]
[312104956,1705629041927,-500.0,0.00034101,3]
[312104957,1705629041935,-500.0,0.00034101,3]
[312104958,1705629041945,-505.72761755,0.00034101,3]
[312104959,1705629041954,-500.0,0.00034101,3]
[312104960,1705629041963,-500.0,0.00034101,3]
[312104961,1705629041972,-500.0,0.00034101,3]
[312104962,1705629041981,-506.04510122,0.00034101,3]
[312104963,1705629041990,-502.88614467,0.00034101,3]
[312104964,1705629041999,-500.0,0.00034101,3]
[312104965,1705629042008,-500.76349209,0.00034101,3]
[312104966,1705629042018,-500.0,0.00034246,3]
[312104967,1705629042027,-500.0,0.00034246,3]
[312104968,1705629042036,-188.90319071,0.00034246,3]
[312104969,1705629042045,-1899.53,0.00034246,3]
[312104970,1705629042054,-778.11,0.00034246,3]
[312104971,1705629042063,-500.0,0.00034246,3]
[312104972,1705629042073,-2959.78,0.00034246,3]
[312104973,1705629042082,-13688.13,0.00034246,3]
[312104974,1705629042092,-1783.4,0.00034246,3]
[312104975,1705629042102,-1719.99,0.00034246,3]
[312104976,1705629042111,-1541.91,0.00034246,3]
[312104977,1705629042121,-9191.98,0.00034246,3]
[312104978,1705629042130,-1400.15,0.00034246,3]
[312104979,1705629042139,-587.09,0.00034246,3]
[312104980,1705629042148,-2590.68,0.00034246,3]
[312104981,1705629042158,-811.91,0.00034246,3]
[312104982,1705629042167,-500.0,0.00034246,3]
[312104983,1705629042175,-500.0,0.00034246,3]
[312104984,1705629042185,-1256.58,0.00034246,3]
[312104985,1705629042194,-636.96,0.00034246,3]
[312104986,1705629042203,-3509.57,0.00034246,3]
[312104987,1705629042212,-545.48,0.00034246,3]
[312104988,1705629042221,-502.11,0.00034246,3]
[312104989,1705629042230,-3523.95,0.00034246,3]
[312104990,1705629042239,-667.64,0.00034246,3]
[312104991,1705629042248,-1214.37,0.00034246,3]
[312104992,1705629042257,-500.0,0.00034246,3]
[312104993,1705629042266,-500.0,0.00034246,3]
[312104994,1705629042275,-500.84,0.00034246,3]
[312104995,1705629042286,-1026.89,0.00034246,3]